[Event "XIX Najdorf Memorial 2019"]
[Site "Warsaw"]
[Date "2019.07.08"]
[Round "3.25"]
[White "Jarocka, Liwia"]
[Black "Pacan-Milej, Kosma"]
[Result "0-1"]
[ECO "B90"]
[WhiteElo "2102"]
[BlackElo "2272"]
[Annotator "NA"]
[PlyCount "128"]
[EventDate "2019.07.06"]
[EventType "swiss"]
[EventCountry "POL"]
[SourceTitle "playchess.com"]
[Source "ChessBase"]
[SourceQuality "1"]
[TimeControl "40/5400+30:1800+30"]

1. e4 {[%emt 0:00:00]} c5 {[%emt 0:00:00]} 2. Nf3 {[%emt 0:00:00]} d6 {[%emt 0:00:00]} 3. d4 {[%emt 0:00:00]} cxd4 {[%emt 0:00:00]} 4. Nxd4 {[%emt 0:00:06]} Nf6 {[%emt 0:00:00]} 5. Nc3 {[%emt 0:00:13]} a6 {[%emt 0:00:01]} 6. Bc4 {[%emt 0:00:23]} e6 {[%emt 0:00:12]} 7. O-O {[%emt 0:00:17]} b5 {[%emt 0:00:21]} 8. Bb3 {[%emt 0:00:19]} Be7 {[%emt 0:00:21]} 9. Qf3 {[%emt 0:00:34]} Qc7 {[%emt 0:01:24]} 10. Qg3 {[%emt 0:00:40]} O-O {[%emt 0:00:50]} 11. Bh6 {[%emt 0:00:47]} Ne8 {[%emt 0:00:09]} 12. Rad1 {[%emt 0:00:33]} Bd7 {[%emt 0:07:37]} 13. Nce2 {[%emt 0:02:39]} Nc6 {[%emt 0:08:11]} 14. Bg5 {[%emt 0:02:48]} Bxg5 {[%emt 0:12:45]} 15. Qxg5 {[%emt 0:01:42]} Nf6 {[%emt 0:00:09]} 16. Ng3 {[%emt 0:13:01]} Nxd4 {[%emt 0:09:40]} 17. Rxd4 {[%emt 0:00:09]} a5 {[%emt 0:00:11]} 18. c3 {[%emt 0:14:16]} a4 {[%emt 0:03:19]} 19. Bc2 {[%emt 0:00:32]} a3 {[%emt 0:30:27]} 20. e5 {[%emt 0:27:50]} h6 {[%emt 0:00:04]} 21. exd6 {[%emt 0:00:58]} hxg5 {[%emt 0:00:12]} 22. dxc7 {[%emt 0:00:06]} axb2 {[%emt 0:00:53]} 23. Ne4 {[%emt 0:01:03]} Nd5 {[%emt 0:04:04]} 24. Bb3 {[%emt 0:06:28]} Bc6 {[%emt 0:11:36]} 25. Rd2 {[%emt 0:12:01]} Nxc7 {[%emt 0:02:51]} 26. Nxg5 {[%emt 0:00:32]} Nd5 {[%emt 0:00:22]} 27. Bxd5 {[%emt 0:07:29]} Bxd5 {[%emt 0:00:40]} 28. Rxb2 {[%emt 0:00:06]} Bxa2 {[%emt 0:01:02]} 29. Nf3 {[%emt 0:02:55]} Bc4 {[%emt 0:00:03]} 30. Rfb1 {[%emt 0:00:15]} Rfd8 {[%emt 0:04:35]} 31. Nd4 {[%emt 0:00:56]} e5 {[%emt 0:01:02]} 32. Nc6 {[%emt 0:03:33]} Re8 {[%emt 0:00:03]} 33. h3 {[%emt 0:00:38]} Ra6 {[%emt 0:00:49]} 34. Nb4 {[%emt 0:00:20]} Ra3 {[%emt 0:00:33]} 35. Rc1 {[%emt 0:00:37]} Rc8 {[%emt 0:00:04]} 36. f3 {[%emt 0:01:28]} f6 {[%emt 0:00:04]} 37. Kh2 {[%emt 0:00:31]} Bf7 {[%emt 0:01:14]} 38. Rd1 {[%emt 0:00:22]} Rcxc3 {[%emt 0:01:34]} 39. Nd5 {[%emt 0:00:14]} Rcb3 {[%emt 0:01:31]} 40. Rxb3 {[%emt 0:00:00]} Rxb3 {[%emt 0:00:00]} 41. Ne7+ {[%emt 0:01:29]} Kh7 {[%emt 0:05:33]} 42. Rd7 {[%emt 0:01:28]} Be6 {[%emt 0:03:14]} 43. Rd6 {[%emt 0:00:15]} Bc4 {[%emt 0:00:17]} 44. Rd7 {[%emt 0:00:32]} Rb2 {[%emt 0:00:45]} 45. Kg1 {[%emt 0:00:52]} b4 {[%emt 0:01:08]} 46. Rb7 {[%emt 0:00:11]} Ba6 {[%emt 0:04:23]} 47. Ra7 {[%emt 0:01:00]} Bd3 {[%emt 0:05:44]} 48. Rd7 {[%emt 0:01:32]} Bc4 {[%emt 0:05:33]} 49. Nd5 {[%emt 0:01:37]} Kg6 {[%emt 0:04:02]} 50. Ne3 {[%emt 0:01:47]} Be6 {[%emt 0:00:12]} 51. Re7 {[%emt 0:00:04]} Ba2 {[%emt 0:00:54]} 52. g4 {[%emt 0:00:35]} Kg5 {[%emt 0:01:10]} 53. Ng2 {[%emt 0:00:12]} Kh6 {[%emt 0:01:18]} 54. h4 {[%emt 0:01:28]} b3 {[%emt 0:00:39]} 55. g5+ {[%emt 0:00:20]} Kg6 {[%emt 0:00:33]} 56. f4 {[%emt 0:00:38]} Rxg2+ {[%emt 0:00:25]} 57. Kxg2 {[%emt 0:00:03]} b2 {[%emt 0:00:03]} 58. h5+ {[%emt 0:01:03]} Kxh5 {[%emt 0:00:11]} 59. gxf6 {[%emt 0:00:05]} gxf6 {[%emt 0:00:11]} 60. fxe5 {[%emt 0:00:25]} b1=Q {[%emt 0:00:09]} 61. exf6 {[%emt 0:00:31]} Qb2+ {[%emt 0:00:19]} 62. Kh3 {[%emt 0:00:13]} Qc3+ {[%emt 0:00:08]} 63. Kh2 {[%emt 0:00:07]} Qxf6 {[%emt 0:00:09]} 64. Rh7+ {[%emt 0:00:06]} Kg4 {[%emt 0:00:15]} 0-1

[Event "XIX Najdorf Memorial 2019"]
[Site "Warsaw"]
[Date "2019.07.08"]
[Round "3.26"]
[White "Chomczyk, Marek"]
[Black "Panek, Bartosz"]
[Result "1-0"]
[ECO "A00"]
[WhiteElo "2270"]
[BlackElo "2041"]
[Annotator "NA"]
[PlyCount "101"]
[EventDate "2019.07.06"]
[EventType "swiss"]
[EventCountry "POL"]
[SourceTitle "playchess.com"]
[Source "ChessBase"]
[SourceQuality "1"]
[TimeControl "40/5400+30:1800+30"]

1. a3 {[%emt 0:00:00]} Nf6 {[%emt 0:00:37]} 2. Nf3 {[%emt 0:00:00]} g6 {[%emt 0:00:12]} 3. d4 {[%emt 0:01:05]} Bg7 {[%emt 0:00:18]} 4. c4 {[%emt 0:00:06]} O-O {[%emt 0:00:50]} 5. Nc3 {[%emt 0:00:04]} d5 {[%emt 0:00:07]} 6. Bf4 {[%emt 0:02:42]} c6 {[%emt 0:16:47]} 7. e3 {[%emt 0:02:06]} Bf5 {[%emt 0:01:36]} 8. Be2 {[%emt 0:01:53]} Nbd7 {[%emt 0:02:14]} 9. h3 {[%emt 0:02:01]} Nb6 {[%emt 0:01:39]} 10. c5 {[%emt 0:04:36]} Nbd7 {[%emt 0:00:59]} 11. O-O {[%emt 0:01:17]} Re8 {[%emt 0:01:04]} 12. Nh4 {[%emt 0:03:46]} e5 {[%emt 0:05:17]} 13. Nxf5 {[%emt 0:03:53]} gxf5 {[%emt 0:00:43]} 14. Bh2 {[%emt 0:03:15]} e4 {[%emt 0:03:24]} 15. b4 {[%emt 0:01:13]} Nf8 {[%emt 0:09:21]} 16. b5 {[%emt 0:01:50]} Ne6 {[%emt 0:00:37]} 17. bxc6 {[%emt 0:03:20]} bxc6 {[%emt 0:00:06]} 18. Qa4 {[%emt 0:01:58]} Qd7 {[%emt 0:07:10]} 19. Rab1 {[%emt 0:03:42]} Kh8 {[%emt 0:10:07]} 20. Ba6 {[%emt 0:13:58]} Ng8 {[%emt 0:02:34]} 21. Rb7 {[%emt 0:01:53]} Qd8 {[%emt 0:01:23]} 22. Qxc6 {[%emt 0:01:03]} Ne7 {[%emt 0:01:06]} 23. Qb5 {[%emt 0:03:07]} f4 {[%emt 0:01:02]} 24. Rd7 {[%emt 0:00:47]} Qb8 {[%emt 0:00:33]} 25. Qxb8 {[%emt 0:05:50]} Raxb8 {[%emt 0:00:07]} 26. Nxd5 {[%emt 0:00:24]} Nxd5 {[%emt 0:00:56]} 27. Rxd5 {[%emt 0:00:05]} Rb3 {[%emt 0:00:44]} 28. Bxf4 {[%emt 0:04:16]} Nxf4 {[%emt 0:00:19]} 29. exf4 {[%emt 0:00:06]} Rxa3 {[%emt 0:00:08]} 30. Bb7 {[%emt 0:01:02]} Rc3 {[%emt 0:01:50]} 31. c6 {[%emt 0:01:21]} Bf6 {[%emt 0:00:13]} 32. Rd7 {[%emt 0:01:30]} Re7 {[%emt 0:00:58]} 33. Rxe7 {[%emt 0:00:25]} Bxe7 {[%emt 0:00:01]} 34. Ra1 {[%emt 0:04:45]} Bd6 {[%emt 0:00:08]} 35. g3 {[%emt 0:00:06]} e3 {[%emt 0:00:20]} 36. fxe3 {[%emt 0:00:18]} Rxe3 {[%emt 0:00:06]} 37. Ra5 {[%emt 0:13:19]} Rxg3+ {[%emt 0:03:16]} 38. Kf2 {[%emt 0:00:09]} Rc3 {[%emt 0:01:23]} 39. Ke2 {[%emt 0:02:26]} Kg7 {[%emt 0:02:58]} 40. Rxa7 {[%emt 0:00:00]} Bxf4 {[%emt 0:00:00]} 41. d5 {[%emt 0:09:31]} Re3+ {[%emt 0:01:46]} 42. Kf1 {[%emt 0:01:58]} Rf3+ {[%emt 0:00:12]} 43. Ke2 {[%emt 0:01:03]} Re3+ {[%emt 0:00:06]} 44. Kf2 {[%emt 0:00:08]} Rxh3 {[%emt 0:00:27]} 45. Ra4 {[%emt 0:01:54]} Bc7 {[%emt 0:00:28]} 46. Ra8 {[%emt 0:00:19]} Rc3 {[%emt 0:00:31]} 47. Rc8 {[%emt 0:00:23]} Bg3+ {[%emt 0:03:24]} 48. Ke2 {[%emt 0:01:44]} h5 {[%emt 0:02:44]} 49. Rd8 {[%emt 0:00:17]} h4 {[%emt 0:01:09]} 50. d6 {[%emt 0:00:16]} h3 {[%emt 0:02:36]} 51. c7 {[%emt 0:02:29]} 1-0

[Event "XIX Najdorf Memorial 2019"]
[Site "Warsaw"]
[Date "2019.07.08"]
[Round "3.27"]
[White "Bus, Konrad"]
[Black "Sliwerski, Radoslaw"]
[Result "1/2-1/2"]
[ECO "E04"]
[WhiteElo "2264"]
[BlackElo "2010"]
[Annotator "NA"]
[PlyCount "65"]
[EventDate "2019.07.06"]
[EventType "swiss"]
[EventCountry "POL"]
[SourceTitle "playchess.com"]
[Source "ChessBase"]
[SourceQuality "1"]
[TimeControl "40/5400+30:1800+30"]

1. d4 {[%emt 0:00:00]} Nf6 {[%emt 0:00:00]} 2. c4 {[%emt 0:00:00]} e6 {[%emt 0:00:00]} 3. g3 {[%emt 0:00:00]} d5 {[%emt 0:00:00]} 4. Bg2 {[%emt 0:00:02]} dxc4 {[%emt 0:00:35]} 5. Nf3 {[%emt 0:00:07]} Nc6 {[%emt 0:00:23]} 6. Qa4 {[%emt 0:00:46]} Bb4+ {[%emt 0:00:21]} 7. Bd2 {[%emt 0:01:07]} Nd5 {[%emt 0:00:32]} 8. Bxb4 {[%emt 0:00:56]} Ndxb4 {[%emt 0:00:02]} 9. O-O {[%emt 0:00:58]} Rb8 {[%emt 0:00:29]} 10. Na3 {[%emt 0:03:15]} O-O {[%emt 0:00:09]} 11. Qb5 {[%emt 0:02:40]} b6 {[%emt 0:01:34]} 12. Qxc4 {[%emt 0:00:43]} Ba6 {[%emt 0:00:09]} 13. Nb5 {[%emt 0:00:29]} Qd5 {[%emt 0:00:55]} 14. Qxd5 {[%emt 0:00:45]} Nxd5 {[%emt 0:00:04]} 15. a4 {[%emt 0:01:10]} Rbd8 {[%emt 0:05:02]} 16. Rac1 {[%emt 0:13:03]} Na5 {[%emt 0:11:05]} 17. e4 {[%emt 0:09:03]} c6 {[%emt 0:07:27]} 18. exd5 {[%emt 0:03:46]} cxb5 {[%emt 0:00:03]} 19. dxe6 {[%emt 0:01:28]} fxe6 {[%emt 0:00:28]} 20. axb5 {[%emt 0:03:42]} Bxb5 {[%emt 0:00:16]} 21. Rfe1 {[%emt 0:00:12]} Nb3 {[%emt 0:08:41]} 22. Rc7 {[%emt 0:03:59]} Nxd4 {[%emt 0:03:31]} 23. Nxd4 {[%emt 0:00:37]} Rxd4 {[%emt 0:00:02]} 24. Bh3 {[%emt 0:09:59]} e5 {[%emt 0:13:15]} 25. Rxa7 {[%emt 0:05:11]} Rd2 {[%emt 0:04:31]} 26. Rb7 {[%emt 0:08:03]} Bc4 {[%emt 0:12:55]} 27. Rc1 {[%emt 0:07:11]} b5 {[%emt 0:04:20]} 28. b3 {[%emt 0:01:54]} Bxb3 {[%emt 0:00:25]} 29. Rxb5 {[%emt 0:01:57]} Ba2 {[%emt 0:02:32]} 30. Rxe5 {[%emt 0:04:26]} Rdxf2 {[%emt 0:02:03]} 31. Rf1 {[%emt 0:02:17]} Rxf1+ {[%emt 0:00:23]} 32. Bxf1 {[%emt 0:00:02]} g6 {[%emt 0:00:50]} 33. Rd5 1/2-1/2

[Event "XIX Najdorf Memorial 2019"]
[Site "Warsaw"]
[Date "2019.07.08"]
[Round "3.28"]
[White "Franco Alonso, Alejandro"]
[Black "Dzida, Kamil"]
[Result "0-1"]
[ECO "A14"]
[WhiteElo "2410"]
[BlackElo "1987"]
[Annotator "NA"]
[PlyCount "80"]
[EventDate "2019.07.06"]
[EventType "swiss"]
[EventCountry "POL"]
[SourceTitle "playchess.com"]
[Source "ChessBase"]
[SourceQuality "1"]
[TimeControl "40/5400+30:1800+30"]

1. Nf3 {[%emt 0:00:00]} Nf6 {[%emt 0:00:00]} 2. c4 {[%emt 0:00:00]} e6 {[%emt 0:00:00]} 3. g3 {[%emt 0:00:00]} d5 {[%emt 0:00:00]} 4. Bg2 {[%emt 0:00:07]} Be7 {[%emt 0:00:00]} 5. O-O {[%emt 0:00:14]} O-O {[%emt 0:00:03]} 6. d4 {[%emt 0:02:46]} dxc4 {[%emt 0:00:16]} 7. Qc2 {[%emt 0:00:22]} a6 {[%emt 0:00:07]} 8. a4 {[%emt 0:02:40]} Bd7 {[%emt 0:00:07]} 9. Qxc4 {[%emt 0:00:32]} Bc6 {[%emt 0:00:07]} 10. Nc3 {[%emt 0:00:43]} a5 {[%emt 0:01:06]} 11. Bg5 {[%emt 0:02:30]} Na6 {[%emt 0:00:11]} 12. Rfd1 {[%emt 0:05:02]} Nb4 {[%emt 0:05:20]} 13. Rac1 {[%emt 0:01:42]} Rc8 {[%emt 0:13:10]} 14. Bxf6 {[%emt 0:09:02]} Bxf6 {[%emt 0:00:09]} 15. e4 {[%emt 0:00:10]} Qe8 {[%emt 0:05:34]} 16. b3 {[%emt 0:01:42]} b6 {[%emt 0:02:34]} 17. Qe2 {[%emt 0:12:01]} Bb7 {[%emt 0:07:23]} 18. Qe1 {[%emt 0:10:24]} Qd7 {[%emt 0:16:26]} 19. Bh3 {[%emt 0:03:10]} Qe7 {[%emt 0:01:10]} 20. d5 {[%emt 0:06:54]} Bxc3 {[%emt 0:01:50]} 21. Rxc3 {[%emt 0:00:20]} Rcd8 {[%emt 0:01:25]} 22. dxe6 {[%emt 0:12:29]} Rxd1 {[%emt 0:01:44]} 23. Qxd1 {[%emt 0:03:20]} fxe6 {[%emt 0:00:53]} 24. Qd4 {[%emt 0:02:02]} c5 {[%emt 0:14:12]} 25. Qe5 {[%emt 0:00:40]} Qd8 {[%emt 0:00:09]} 26. Bxe6+ {[%emt 0:11:30]} Kh8 {[%emt 0:00:04]} 27. Ng5 {[%emt 0:02:04]} Ba6 {[%emt 0:01:57]} 28. Bd5 {[%emt 0:01:42]} Nc6 {[%emt 0:03:16]} 29. Qxg7+ {[%emt 0:04:31]} Kxg7 {[%emt 0:00:44]} 30. Ne6+ {[%emt 0:00:04]} Kf6 {[%emt 0:03:52]} 31. Nxd8 {[%emt 0:00:06]} Nxd8 {[%emt 0:00:02]} 32. f4 {[%emt 0:00:34]} Ne6 {[%emt 0:00:22]} 33. Kf2 {[%emt 0:01:11]} Rd8 {[%emt 0:02:29]} 34. Ke3 {[%emt 0:01:10]} Nc7 {[%emt 0:01:42]} 35. Bc4 {[%emt 0:03:07]} Bb7 {[%emt 0:02:47]} 36. g4 {[%emt 0:02:23]} Rd4 {[%emt 0:01:15]} 37. Bd3 {[%emt 0:00:05]} Na6 {[%emt 0:04:18]} 38. e5+ {[%emt 0:01:02]} Ke6 {[%emt 0:00:04]} 39. Bxh7 {[%emt 0:00:24]} Nb4 {[%emt 0:00:04]} 40. Rc4 {[%emt 0:00:00]} Nd5+ {[%emt 0:00:00] Kxd4 Kxe5+} 0-1

[Event "XIX Najdorf Memorial 2019"]
[Site "Warsaw"]
[Date "2019.07.08"]
[Round "3.29"]
[White "Maj, Pawel"]
[Black "Krstulovic, Alex"]
[Result "1-0"]
[ECO "C99"]
[WhiteElo "2127"]
[BlackElo "2360"]
[Annotator "NA"]
[PlyCount "124"]
[EventDate "2019.07.06"]
[EventType "swiss"]
[EventCountry "POL"]
[SourceTitle "playchess.com"]
[Source "ChessBase"]
[SourceQuality "1"]
[TimeControl "40/5400+30:1800+30"]

1. e4 {[%emt 0:00:00]} e5 {[%emt 0:00:00]} 2. Nf3 {[%emt 0:00:00]} Nc6 {[%emt 0:00:00]} 3. Bb5 {[%emt 0:00:00]} a6 {[%emt 0:00:00]} 4. Ba4 {[%emt 0:00:00]} Nf6 {[%emt 0:00:00]} 5. O-O {[%emt 0:00:00]} Be7 {[%emt 0:00:03]} 6. Re1 {[%emt 0:00:08]} b5 {[%emt 0:00:06]} 7. Bb3 {[%emt 0:00:04]} d6 {[%emt 0:00:07]} 8. c3 {[%emt 0:00:09]} O-O {[%emt 0:00:14]} 9. h3 {[%emt 0:00:07]} Na5 {[%emt 0:00:06]} 10. Bc2 {[%emt 0:00:06]} c5 {[%emt 0:00:05]} 11. d4 {[%emt 0:00:08]} Qc7 {[%emt 0:00:09]} 12. Nbd2 {[%emt 0:00:36]} cxd4 {[%emt 0:00:16]} 13. cxd4 {[%emt 0:00:08]} Nc6 {[%emt 0:00:04]} 14. a3 {[%emt 0:06:35]} Nxd4 {[%emt 0:14:53]} 15. Nxd4 {[%emt 0:01:09]} exd4 {[%emt 0:00:12]} 16. Nf3 {[%emt 0:05:05]} d3 {[%emt 0:00:08]} 17. Bxd3 {[%emt 0:02:20]} Bb7 {[%emt 0:03:39]} 18. Bf4 {[%emt 0:05:58]} Nd7 {[%emt 0:02:49]} 19. Rc1 {[%emt 0:02:10]} Qb8 {[%emt 0:02:29]} 20. Nd4 {[%emt 0:13:51]} Ne5 {[%emt 0:04:30]} 21. Bxe5 {[%emt 0:13:11]} dxe5 {[%emt 0:00:07]} 22. Nc6 {[%emt 0:00:24]} Qd6 {[%emt 0:01:26]} 23. Na5 {[%emt 0:04:43]} Bc8 {[%emt 0:03:33]} 24. Be2 {[%emt 0:04:21]} Qb6 {[%emt 0:02:23]} 25. b4 {[%emt 0:02:34]} Bh4 {[%emt 0:03:31]} 26. Rc5 {[%emt 0:01:21]} Rd8 {[%emt 0:01:31]} 27. Qb3 {[%emt 0:04:04]} Be6 {[%emt 0:04:46]} 28. Qc3 {[%emt 0:05:37]} Rac8 {[%emt 0:02:59]} 29. Rc1 {[%emt 0:06:13]} Be7 {[%emt 0:04:03]} 30. Rc6 {[%emt 0:06:26]} Qd4 {[%emt 0:12:39]} 31. Qxd4 {[%emt 0:01:20]} exd4 {[%emt 0:02:26]} 32. Rxc8 {[%emt 0:01:56]} Rxc8 {[%emt 0:00:05]} 33. Rxc8+ {[%emt 0:00:13]} Bxc8 {[%emt 0:00:01]} 34. Nc6 {[%emt 0:01:12]} Bf8 {[%emt 0:00:56]} 35. Nxd4 {[%emt 0:01:18]} g5 {[%emt 0:02:17]} 36. Nb3 {[%emt 0:03:13]} Bg7 {[%emt 0:01:27]} 37. Nc5 {[%emt 0:00:47]} Bd4 {[%emt 0:00:10]} 38. Bg4 {[%emt 0:06:34]} Bxg4 {[%emt 0:03:47]} 39. hxg4 {[%emt 0:02:39]} Bb2 40. Nxa6 Bxa3 {[%emt 0:02:38]} 41. Kf1 {[%emt 0:00:58]} Kg7 {[%emt 0:16:59]} 42. Ke2 {[%emt 0:06:18]} Kf6 {[%emt 0:00:44]} 43. Kd3 {[%emt 0:01:13]} Ke5 {[%emt 0:00:01]} 44. g3 {[%emt 0:02:14]} Bb2 {[%emt 0:02:06]} 45. Nc7 {[%emt 0:04:27]} Ba3 {[%emt 0:00:06]} 46. Nd5 {[%emt 0:02:20]} Bb2 {[%emt 0:00:27]} 47. f3 {[%emt 0:01:01]} Kd6 {[%emt 0:02:58]} 48. f4 {[%emt 0:02:01]} h6 {[%emt 0:01:31]} 49. Ne3 {[%emt 0:01:15]} Ba3 {[%emt 0:01:20]} 50. Nf5+ {[%emt 0:01:08]} Ke6 {[%emt 0:02:20]} 51. Nd4+ {[%emt 0:01:23]} Kf6 {[%emt 0:01:04]} 52. e5+ {[%emt 0:00:24]} Kg7 {[%emt 0:00:04]} 53. Kc3 {[%emt 0:00:26]} gxf4 {[%emt 0:00:50]} 54. gxf4 {[%emt 0:00:06]} Bc1 {[%emt 0:00:08]} 55. f5 {[%emt 0:01:24]} Bf4 {[%emt 0:01:20]} 56. e6 {[%emt 0:00:59]} Kf6 {[%emt 0:00:02]} 57. exf7 {[%emt 0:00:40]} Kxf7 {[%emt 0:00:02]} 58. Nxb5 {[%emt 0:00:45]} Kf6 {[%emt 0:00:06]} 59. Nd4 {[%emt 0:00:30]} Be5 {[%emt 0:00:05]} 60. Kd3 {[%emt 0:00:13]} Bd6 {[%emt 0:00:30]} 61. b5 {[%emt 0:02:03]} Kg5 {[%emt 0:00:04]} 62. Ke4 {[%emt 0:00:12]} Kxg4 {[%emt 0:00:06]} 1-0

[Event "XIX Najdorf Memorial 2019"]
[Site "Warsaw"]
[Date "2019.07.08"]
[Round "3.31"]
[White "Bednarek, Sylwester"]
[Black "Milikow, Elie"]
[Result "1-0"]
[ECO "A45"]
[WhiteElo "2291"]
[BlackElo "2129"]
[Annotator "NA"]
[PlyCount "77"]
[EventDate "2019.07.06"]
[EventType "swiss"]
[EventCountry "POL"]
[SourceTitle "playchess.com"]
[Source "ChessBase"]
[SourceQuality "1"]
[TimeControl "40/5400+30:1800+30"]

1. d4 {[%emt 0:14:58]} Nf6 {[%emt 0:00:00]} 2. Bg5 {[%emt 0:00:39]} d5 {[%emt 0:00:00]} 3. Bxf6 {[%emt 0:00:07]} gxf6 {[%emt 0:00:00]} 4. c4 {[%emt 0:00:08]} dxc4 {[%emt 0:00:04]} 5. e3 {[%emt 0:00:07]} c5 {[%emt 0:00:11]} 6. d5 {[%emt 0:00:18]} Nd7 {[%emt 0:00:06]} 7. Bxc4 {[%emt 0:00:27]} Rg8 {[%emt 0:00:20]} 8. g3 {[%emt 0:00:56]} Nb6 {[%emt 0:00:05]} 9. Bb5+ {[%emt 0:07:47]} Bd7 {[%emt 0:00:05]} 10. Be2 {[%emt 0:00:15]} Qc7 {[%emt 0:05:06]} 11. Nc3 {[%emt 0:00:22]} O-O-O {[%emt 0:00:40]} 12. Qc2 {[%emt 0:06:21]} f5 {[%emt 0:04:21]} 13. Nh3 {[%emt 0:12:39]} Bg7 {[%emt 0:01:34]} 14. Nf4 {[%emt 0:00:16]} Kb8 {[%emt 0:07:24]} 15. a4 {[%emt 0:01:13]} Nc8 {[%emt 0:00:53]} 16. O-O {[%emt 0:00:55]} Bh6 {[%emt 0:02:17]} 17. Kh1 {[%emt 0:01:54]} Qd6 {[%emt 0:12:50]} 18. Bf3 {[%emt 0:03:25]} e5 {[%emt 0:06:45]} 19. dxe6 {[%emt 0:00:17]} Bc6 {[%emt 0:00:08]} 20. Qe2 {[%emt 0:03:35]} fxe6 {[%emt 0:07:59]} 21. Rfd1 {[%emt 0:03:20]} Bxf3+ {[%emt 0:00:27]} 22. Qxf3 {[%emt 0:00:03]} Qe7 {[%emt 0:01:24]} 23. a5 {[%emt 0:05:06]} a6 {[%emt 0:03:24]} 24. Na4 {[%emt 0:02:44]} c4 {[%emt 0:12:00]} 25. Rac1 {[%emt 0:06:39]} Rxd1+ {[%emt 0:04:23]} 26. Rxd1 {[%emt 0:01:45]} Qb4 {[%emt 0:03:47]} 27. Nc3 {[%emt 0:00:13]} Qe7 {[%emt 0:06:44]} 28. e4 {[%emt 0:05:38]} Bxf4 {[%emt 0:06:28]} 29. Qxf4+ {[%emt 0:00:09]} e5 {[%emt 0:00:12]} 30. Qd2 {[%emt 0:01:55]} f4 {[%emt 0:01:28]} 31. Qd5 {[%emt 0:00:57]} Qg7 {[%emt 0:03:32]} 32. Qe6 {[%emt 0:00:57]} Qg5 {[%emt 0:03:59]} 33. h4 {[%emt 0:05:54]} Qg4 {[%emt 0:05:19]} 34. Qxe5+ {[%emt 0:00:07]} Ka8 {[%emt 0:00:02]} 35. Qxf4 {[%emt 0:00:11]} Qg7 {[%emt 0:01:16]} 36. Rd5 Ne7 {[%emt 0:00:12]} 37. Rd7 {[%emt 0:03:32]} Rb8 {[%emt 0:01:09]} 38. Nd5 {[%emt 0:00:41]} Nxd5 {[%emt 0:00:07]} 39. Qxb8+ {[%emt 0:00:08]} 1-0

[Event "XIX Najdorf Memorial 2019"]
[Site "Warsaw"]
[Date "2019.07.08"]
[Round "3.32"]
[White "Czopor, Maciej"]
[Black "Parol, Pola"]
[Result "1-0"]
[ECO "B90"]
[WhiteElo "2250"]
[BlackElo "2064"]
[Annotator "NA"]
[PlyCount "139"]
[EventDate "2019.07.06"]
[EventType "swiss"]
[EventCountry "POL"]
[SourceTitle "playchess.com"]
[Source "ChessBase"]
[SourceQuality "1"]
[TimeControl "40/5400+30:1800+30"]

1. e4 {[%emt 0:00:00]} c5 {[%emt 0:00:00]} 2. Nf3 {[%emt 0:00:00]} d6 {[%emt 0:00:00]} 3. d4 {[%emt 0:00:00]} cxd4 {[%emt 0:00:00]} 4. Nxd4 {[%emt 0:00:00]} Nf6 {[%emt 0:00:00]} 5. Nc3 {[%emt 0:00:00]} a6 {[%emt 0:00:04]} 6. Be3 {[%emt 0:00:07]} e5 {[%emt 0:00:16]} 7. Nb3 {[%emt 0:00:08]} Be6 {[%emt 0:00:07]} 8. Qd2 {[%emt 0:00:11]} Be7 {[%emt 0:04:23]} 9. f4 {[%emt 0:01:04]} Ng4 {[%emt 0:02:46]} 10. f5 {[%emt 0:02:22]} Bxb3 {[%emt 0:06:50]} 11. axb3 {[%emt 0:00:16]} Nxe3 {[%emt 0:00:28]} 12. Qxe3 {[%emt 0:00:01]} Nd7 {[%emt 0:06:45]} 13. Bc4 {[%emt 0:10:16]} Bg5 {[%emt 0:10:52]} 14. Qe2 {[%emt 0:05:42]} Rc8 {[%emt 0:06:02]} 15. Bd5 {[%emt 0:09:56]} Rc7 {[%emt 0:04:09]} 16. O-O {[%emt 0:02:52]} O-O {[%emt 0:00:56]} 17. Rfd1 {[%emt 0:02:56]} Qc8 {[%emt 0:02:53]} 18. Rd3 {[%emt 0:04:54]} Nf6 {[%emt 0:05:40]} 19. Rad1 {[%emt 0:09:45]} b5 {[%emt 0:03:52]} 20. b4 {[%emt 0:05:00]} Nxd5 {[%emt 0:03:29]} 21. Rxd5 {[%emt 0:09:57]} Rc4 {[%emt 0:01:33]} 22. R1d3 {[%emt 0:06:23]} Rxb4 {[%emt 0:05:51]} 23. b3 {[%emt 0:01:06]} Rd4 {[%emt 0:02:02]} 24. R5xd4 {[%emt 0:03:16]} exd4 {[%emt 0:02:32]} 25. Nd5 {[%emt 0:00:24]} Re8 {[%emt 0:04:36]} 26. Rg3 {[%emt 0:03:30]} h6 {[%emt 0:03:38]} 27. Qd3 {[%emt 0:01:53]} Kh8 {[%emt 0:01:47]} 28. Kf1 {[%emt 0:07:40]} Re5 {[%emt 0:05:55]} 29. Rg4 {[%emt 0:01:37]} g6 {[%emt 0:02:47]} 30. Rxg5 {[%emt 0:04:47]} hxg5 {[%emt 0:06:12]} 31. Qh3+ {[%emt 0:00:12]} Kg8 {[%emt 0:00:51]} 32. Nf6+ {[%emt 0:00:28]} Kg7 {[%emt 0:01:13]} 33. Ng4 {[%emt 0:01:20]} Qh8 {[%emt 0:01:53]} 34. f6+ {[%emt 0:01:14]} Kg8 {[%emt 0:00:17]} 35. Nh6+ {[%emt 0:00:27]} Kf8 {[%emt 0:00:18]} 36. Qd7 {[%emt 0:00:51]} Qxh6 {[%emt 0:01:59]} 37. Qxd6+ {[%emt 0:00:16]} Kg8 {[%emt 0:00:40]} 38. Qxe5 {[%emt 0:00:24]} Qf8 {[%emt 0:00:44]} 39. Qxd4 {[%emt 0:02:40]} Qb8 {[%emt 0:01:56]} 40. e5 {[%emt 0:00:00]} Qc8 {[%emt 0:00:00]} 41. Qe4 {[%emt 0:07:45]} Kh7 {[%emt 0:06:00]} 42. Qd3 {[%emt 0:04:35]} g4 {[%emt 0:03:09]} 43. h3 {[%emt 0:06:39]} Qe6 {[%emt 0:02:44]} 44. Qe3 {[%emt 0:07:23]} Qf5+ {[%emt 0:01:08]} 45. Kg1 {[%emt 0:00:15]} Qxc2 {[%emt 0:01:09]} 46. e6 {[%emt 0:03:11]} Qd1+ {[%emt 0:03:21]} 47. Kf2 {[%emt 0:00:19]} g3+ {[%emt 0:01:34]} 48. Kxg3 {[%emt 0:01:51]} Qd6+ {[%emt 0:00:19]} 49. Kg4 {[%emt 0:04:33]} Qd1+ {[%emt 0:07:29]} 50. Kg3 {[%emt 0:02:17]} Qd6+ {[%emt 0:00:31]} 51. Kh4 {[%emt 0:00:27]} Qxe6 {[%emt 0:02:00]} 52. Qxe6 {[%emt 0:00:05]} fxe6 {[%emt 0:00:02]} 53. b4 {[%emt 0:00:28]} e5 {[%emt 0:02:26]} 54. g4 {[%emt 0:01:59]} Kg8 {[%emt 0:03:00]} 55. g5 {[%emt 0:00:12]} Kf7 {[%emt 0:02:12]} 56. Kg3 {[%emt 0:00:13]} Ke6 {[%emt 0:01:34]} 57. Kf3 {[%emt 0:00:17]} a5 {[%emt 0:00:28]} 58. bxa5 {[%emt 0:00:24]} b4 {[%emt 0:00:03]} 59. a6 {[%emt 0:01:37]} b3 {[%emt 0:00:04]} 60. a7 {[%emt 0:00:04]} b2 {[%emt 0:00:04]} 61. a8=Q {[%emt 0:00:12]} b1=Q {[%emt 0:00:07]} 62. Qc8+ {[%emt 0:00:41]} Kd6 {[%emt 0:01:05]} 63. Qa6+ {[%emt 0:00:47]} Kd5 {[%emt 0:01:49]} 64. f7 {[%emt 0:01:12]} e4+ {[%emt 0:00:51]} 65. Kf2 {[%emt 0:00:30]} Qc2+ {[%emt 0:01:24]} 66. Qe2 {[%emt 0:00:13]} Qc5+ {[%emt 0:00:22]} 67. Kg2 {[%emt 0:00:27]} Qe7 {[%emt 0:00:34]} 68. Qb5+ {[%emt 0:00:30]} Ke6 {[%emt 0:01:00]} 69. Qe8 {[%emt 0:00:21]} e3 {[%emt 0:00:52]} 70. f8=Q {[%emt 0:00:12]} 1-0